[Event "Snabb-SM för veteraner, 65+ 2019"]
[Site "Schackcentrum, Vegagatan 20, Gothenburg, Sweden"]
[Date "2019.10.06"]
[Round "8.9"]
[White "Nilsson, Weine"]
[Black "Westerlind, Sture"]
[Result "1-0"]
[TimeControl "15 minutes + 10 seconds per move from move one"]
[WhiteFideId "1716727"]
[BlackFideId "1745654"]
[WhiteElo "1847"]
[BlackElo "1806"]

1. Nf3 {[%clk 00:15:17]} {[%emt 00:00:02]} Nf6 {[%clk 00:15:17]} {[%emt
00:00:04]} 2. g3 {[%clk 00:15:25]} {[%emt 00:00:03]} d5 {[%clk 00:15:23]}
{[%emt 00:00:04]} 3. Bg2 {[%clk 00:15:31]} {[%emt 00:00:03]} e6 {[%clk
00:15:30]} {[%emt 00:00:03]} 4. O-O {[%clk 00:15:37]} {[%emt 00:00:04]} c5
{[%clk 00:15:38]} {[%emt 00:00:02]} 5. d3 {[%clk 00:15:46]} {[%emt 00:00:02]}
Nc6 {[%clk 00:15:44]} {[%emt 00:00:04]} 6. Nbd2 {[%clk 00:15:54]} {[%emt
00:00:02]} Be7 {[%clk 00:15:37]} {[%emt 00:00:17]} 7. e4 {[%clk 00:16:01]}
{[%emt 00:00:03]} dxe4 {[%clk 00:14:24]} {[%emt 00:01:23]} 8. dxe4 {[%clk
00:16:07]} {[%emt 00:00:04]} Qc7 {[%clk 00:14:27]} {[%emt 00:00:06]} 9. Re1
{[%clk 00:15:22]} {[%emt 00:00:55]} e5 {[%clk 00:14:11]} {[%emt 00:00:27]} 10.
c3 {[%clk 00:15:30]} {[%emt 00:00:02]} Be6 {[%clk 00:14:10]} {[%emt 00:00:10]}
11. Qc2 {[%clk 00:15:04]} {[%emt 00:00:36]} h6 {[%clk 00:14:12]} {[%emt
00:00:09]} 12. Nf1 {[%clk 00:15:02]} {[%emt 00:00:11]} Rd8 {[%clk 00:13:59]}
{[%emt 00:00:23]} 13. Nh4 {[%clk 00:14:49]} {[%emt 00:00:22]} O-O {[%clk
00:13:31]} {[%emt 00:00:39]} 14. Nf5 {[%clk 00:14:37]} {[%emt 00:00:20]} b6
{[%clk 00:11:47]} {[%emt 00:01:56]} 15. f4 {[%clk 00:14:26]} {[%emt 00:00:20]}
c4 {[%clk 00:10:12]} {[%emt 00:01:46]} 16. Nxe7+ {[%clk 00:12:55]} {[%emt
00:01:40]} Qxe7 {[%clk 00:10:19]} {[%emt 00:00:03]} 17. f5 {[%clk 00:12:57]}
{[%emt 00:00:08]} Bc8 {[%clk 00:10:27]} {[%emt 00:00:02]} 18. h3 {[%clk
00:12:58]} {[%emt 00:00:09]} Bb7 {[%clk 00:10:14]} {[%emt 00:00:23]} 19. Kh2
{[%clk 00:13:02]} {[%emt 00:00:05]} Rd3 {[%clk 00:10:16]} {[%emt 00:00:09]} 20.
b3 {[%clk 00:12:35]} {[%emt 00:00:37]} b5 {[%clk 00:10:18]} {[%emt 00:00:08]}
21. Be3 {[%clk 00:11:42]} {[%emt 00:01:03]} Rfd8 {[%clk 00:10:15]} {[%emt
00:00:13]} 22. b4 {[%clk 00:11:48]} {[%emt 00:00:04]} Qc7 {[%clk 00:09:39]}
{[%emt 00:00:45]} 23. a4 {[%clk 00:11:53]} {[%emt 00:00:06]} a6 {[%clk
00:08:28]} {[%emt 00:01:21]} 24. a5 {[%clk 00:11:35]} {[%emt 00:00:28]} R8d7
{[%clk 00:06:31]} {[%emt 00:02:07]} 25. g4 {[%clk 00:11:30]} {[%emt 00:00:15]}
Ne7 {[%clk 00:06:04]} {[%emt 00:00:37]} 26. Ng3 {[%clk 00:11:22]} {[%emt
00:00:18]} Bc6 {[%clk 00:05:58]} {[%emt 00:00:16]} 27. g5 {[%clk 00:10:40]}
{[%emt 00:00:52]} hxg5 {[%clk 00:06:05]} {[%emt 00:00:03]} 28. Bxg5 {[%clk
00:10:40]} {[%emt 00:00:10]} Qd6 {[%clk 00:05:36]} {[%emt 00:00:40]} 29. Bf1
{[%clk 00:09:53]} {[%emt 00:00:56]} Rf3 {[%clk 00:04:39]} {[%emt 00:01:07]} 30.
Rad1 {[%clk 00:08:24]} {[%emt 00:01:39]} Qc7 {[%clk 00:04:19]} {[%emt
00:00:30]} 31. Rxd7 {[%clk 00:07:16]} {[%emt 00:01:18]} Qxd7 {[%clk 00:03:37]}
{[%emt 00:00:53]} 32. Bxf6 {[%clk 00:06:44]} {[%emt 00:00:41]} gxf6 {[%clk
00:03:45]} {[%emt 00:00:02]} 33. Nh5 {[%clk 00:06:17]} {[%emt 00:00:36]} 1-0

[Event "Snabb-SM för veteraner, 65+ 2019"]
[Site "Schackcentrum, Vegagatan 20, Gothenburg, Sweden"]
[Date "2019.10.06"]
[Round "9.1"]
[White "Green, Per"]
[Black "Stroem, Leif"]
[Result "1/2-1/2"]
[TimeControl "15 minutes + 10 seconds per move from move one"]
[WhiteFideId "1703811"]
[BlackFideId "1709410"]
[WhiteElo "1923"]
[BlackElo "2014"]

1. Nf3 {[%clk 00:15:17]} {[%emt 00:00:02]} g6 {[%clk 00:15:20]} 2. e4 {[%clk
00:15:23]} {[%emt 00:00:04]} Bg7 {[%clk 00:15:29]} {[%emt 00:00:01]} 3. d4
{[%clk 00:15:30]} {[%emt 00:00:03]} d6 {[%clk 00:15:37]} {[%emt 00:00:01]} 4.
c3 {[%clk 00:15:36]} {[%emt 00:00:04]} Nf6 {[%clk 00:15:24]} {[%emt 00:00:23]}
5. Bd3 {[%clk 00:15:42]} {[%emt 00:00:03]} O-O {[%clk 00:15:19]} {[%emt
00:00:15]} 6. O-O {[%clk 00:15:49]} {[%emt 00:00:03]} Nbd7 {[%clk 00:14:57]}
{[%emt 00:00:32]} 7. Re1 {[%clk 00:15:31]} {[%emt 00:00:27]} e5 {[%clk
00:15:04]} {[%emt 00:00:04]} 8. Bg5 {[%clk 00:15:15]} {[%emt 00:00:25]} h6
{[%clk 00:15:10]} {[%emt 00:00:04]} 9. Bh4 {[%clk 00:15:22]} {[%emt 00:00:03]}
a6 {[%clk 00:14:08]} {[%emt 00:01:13]} 10. Qc2 {[%clk 00:15:02]} {[%emt
00:00:30]} g5 {[%clk 00:13:48]} {[%emt 00:00:30]} 11. Bg3 {[%clk 00:15:09]}
{[%emt 00:00:02]} Nh5 {[%clk 00:13:54]} {[%emt 00:00:04]} 12. Nbd2 {[%clk
00:14:57]} {[%emt 00:00:22]} Nxg3 {[%clk 00:14:01]} {[%emt 00:00:04]} 13. hxg3
{[%clk 00:15:01]} {[%emt 00:00:06]} Qe7 {[%clk 00:12:24]} {[%emt 00:01:47]} 14.
Nc4 {[%clk 00:14:38]} {[%emt 00:00:32]} b6 {[%clk 00:11:31]} {[%emt 00:01:04]}
15. Ne3 {[%clk 00:14:37]} {[%emt 00:00:11]} Nf6 {[%clk 00:11:33]} {[%emt
00:00:08]} 16. Rad1 {[%clk 00:13:48]} {[%emt 00:00:58]} Kh8 {[%clk 00:09:53]}
{[%emt 00:01:50]} 17. a3 {[%clk 00:13:26]} {[%emt 00:00:33]} c6 {[%clk
00:09:26]} {[%emt 00:00:36]} 18. dxe5 {[%clk 00:13:26]} {[%emt 00:00:10]} dxe5
{[%clk 00:09:34]} {[%emt 00:00:03]} 19. Nc4 {[%clk 00:13:31]} {[%emt 00:00:05]}
Nd7 {[%clk 00:09:33]} {[%emt 00:00:11]} 20. Bf1 {[%clk 00:13:21]} {[%emt
00:00:19]} b5 {[%clk 00:09:03]} {[%emt 00:00:40]} 21. Nd6 {[%clk 00:13:27]}
{[%emt 00:00:04]} Nf6 {[%clk 00:08:55]} {[%emt 00:00:18]} 22. Nxc8 {[%clk
00:12:33]} {[%emt 00:01:04]} Raxc8 {[%clk 00:08:59]} {[%emt 00:00:06]} 23. a4
{[%clk 00:12:21]} {[%emt 00:00:22]} Rcd8 {[%clk 00:09:06]} {[%emt 00:00:02]} 24.
c4 {[%clk 00:11:01]} {[%emt 00:01:30]} b4 {[%clk 00:08:40]} {[%emt 00:00:37]}
25. c5 {[%clk 00:11:00]} {[%emt 00:00:11]} a5 {[%clk 00:08:48]} {[%emt
00:00:02]} 26. b3 {[%clk 00:10:52]} {[%emt 00:00:18]} Nd7 {[%clk 00:08:23]}
{[%emt 00:00:35]} 27. Rc1 {[%clk 00:10:26]} {[%emt 00:00:36]} Nf6 {[%clk
00:08:19]} {[%emt 00:00:13]} 28. Red1 {[%clk 00:10:26]} {[%emt 00:00:09]} Rd7
{[%clk 00:08:03]} {[%emt 00:00:27]} 29. Rxd7 {[%clk 00:10:26]} {[%emt
00:00:11]} Nxd7 {[%clk 00:08:11]} {[%emt 00:00:01]} 30. Qc4 {[%clk 00:10:10]}
{[%emt 00:00:25]} Nb8 {[%clk 00:07:42]} {[%emt 00:00:39]} 31. Nh2 {[%clk
00:10:03]} {[%emt 00:00:16]} Rd8 {[%clk 00:07:43]} {[%emt 00:00:09]} 32. Ng4
{[%clk 00:09:42]} {[%emt 00:00:31]} Rd4 {[%clk 00:07:51]} {[%emt 00:00:03]} 33.
Qc2 {[%clk 00:09:51]} {[%emt 00:00:01]} Qd7 {[%clk 00:07:58]} {[%emt 00:00:04]}
34. Ne3 {[%clk 00:09:43]} {[%emt 00:00:17]} Rd2 {[%clk 00:07:52]} {[%emt
00:00:16]} 35. Qc4 {[%clk 00:09:41]} {[%emt 00:00:12]} Rd4 {[%clk 00:08:01]}
{[%emt 00:00:02]} 36. Qc2 {[%clk 00:09:44]} {[%emt 00:00:07]} Rd2 {[%clk
00:08:10]} {[%emt 00:00:01]} 1/2-1/2

[Event "Snabb-SM för veteraner, 65+ 2019"]
[Site "Schackcentrum, Vegagatan 20, Gothenburg, Sweden"]
[Date "2019.10.06"]
[Round "9.2"]
[White "Kvarby, Anders"]
[Black "Dolata, Henryk"]
[Result "0-1"]
[TimeControl "15 minutes + 10 seconds per move from move one"]
[WhiteFideId "1746596"]
[BlackFideId "1709046"]
[WhiteElo "1887"]
[BlackElo "2064"]

1. d4 {[%clk 00:15:17]} {[%emt 00:00:03]} e6 {[%clk 00:15:19]} {[%emt
00:00:02]} 2. c4 {[%clk 00:15:19]} {[%emt 00:00:07]} d5 {[%clk 00:15:28]}
{[%emt 00:00:02]} 3. g3 {[%clk 00:15:23]} {[%emt 00:00:06]} Nf6 {[%clk
00:15:37]} {[%emt 00:00:01]} 4. Bg2 {[%clk 00:15:30]} {[%emt 00:00:02]} Be7
{[%clk 00:15:46]} {[%emt 00:00:01]} 5. Nf3 {[%clk 00:15:27]} {[%emt 00:00:12]}
O-O {[%clk 00:15:53]} {[%emt 00:00:03]} 6. Qc2 {[%clk 00:15:25]} {[%emt
00:00:13]} dxc4 {[%clk 00:15:58]} {[%emt 00:00:04]} 7. Qxc4 {[%clk 00:15:32]}
{[%emt 00:00:03]} a6 {[%clk 00:16:06]} {[%emt 00:00:02]} 8. Bf4 {[%clk
00:14:51]} {[%emt 00:00:49]} Nd5 {[%clk 00:14:59]} {[%emt 00:01:18]} 9. Bd2
{[%clk 00:13:39]} {[%emt 00:01:21]} b5 {[%clk 00:13:20]} {[%emt 00:01:50]} 10.
Qb3 {[%clk 00:13:24]} {[%emt 00:00:25]} Bb7 {[%clk 00:12:52]} {[%emt 00:00:39]}
11. O-O {[%clk 00:13:24]} {[%emt 00:00:09]} Nd7 {[%clk 00:11:55]} {[%emt
00:01:07]} 12. Nc3 {[%clk 00:13:11]} {[%emt 00:00:23]} c5 {[%clk 00:11:33]}
{[%emt 00:00:32]} 13. Ne4 {[%clk 00:11:13]} {[%emt 00:02:08]} Qb6 {[%clk
00:09:43]} {[%emt 00:02:00]} 14. dxc5 {[%clk 00:10:22]} {[%emt 00:01:01]} Nxc5
{[%clk 00:09:51]} {[%emt 00:00:02]} 15. Nxc5 {[%clk 00:10:29]} {[%emt
00:00:02]} Bxc5 {[%clk 00:09:58]} {[%emt 00:00:03]} 16. a4 {[%clk 00:09:55]}
{[%emt 00:00:45]} h6 {[%clk 00:09:23]} {[%emt 00:00:45]} 17. a5 {[%clk
00:09:30]} {[%emt 00:00:35]} Qd6 {[%clk 00:08:24]} {[%emt 00:01:09]} 18. Rfd1
{[%clk 00:09:07]} {[%emt 00:00:32]} Qe7 {[%clk 00:08:26]} {[%emt 00:00:08]} 19.
Rac1 {[%clk 00:08:46]} {[%emt 00:00:32]} Rac8 {[%clk 00:08:36]} {[%emt
00:00:01]} 20. Ne5 {[%clk 00:08:15]} {[%emt 00:00:40]} Rfd8 {[%clk 00:08:28]}
{[%emt 00:00:19]} 21. Nd3 {[%clk 00:07:26]} {[%emt 00:00:58]} Ba7 {[%clk
00:07:38]} {[%emt 00:01:00]} 22. Nb4 {[%clk 00:06:22]} {[%emt 00:01:14]} Rxc1
{[%clk 00:06:16]} {[%emt 00:01:32]} 23. Rxc1 {[%clk 00:06:24]} {[%emt
00:00:08]} Nxb4 {[%clk 00:05:24]} {[%emt 00:01:02]} 24. Bxb4 {[%clk 00:05:35]}
{[%emt 00:01:00]} Qd7 {[%clk 00:05:24]} {[%emt 00:00:10]} 25. Bxb7 {[%clk
00:05:31]} {[%emt 00:00:13]} Qxb7 {[%clk 00:05:32]} {[%emt 00:00:01]} 26. Qc3
{[%clk 00:05:23]} {[%emt 00:00:18]} Qd5 {[%clk 00:03:09]} {[%emt 00:02:34]} 27.
Qc6 {[%clk 00:05:03]} {[%emt 00:00:30]} Bxf2+ {[%clk 00:02:55]} {[%emt
00:00:25]} 28. Kxf2 {[%emt 00:00:23]} Qd4+ {[%clk 00:05:11]} {[%emt 00:00:49]}
29. Kg2 {[%clk 00:04:31]} {[%emt 00:00:33]} Qxb4 {[%clk 00:05:18]} {[%emt
00:00:04]} 30. Qxa6 {[%clk 00:04:29]} {[%emt 00:00:12]} Qxb2 {[%clk 00:04:39]}
{[%emt 00:00:49]} 31. Rc8 {[%clk 00:04:23]} {[%emt 00:00:16]} Qxe2+ {[%clk
00:04:44]} {[%emt 00:00:04]} 32. Kg1 {[%clk 00:04:28]} {[%emt 00:00:05]} Qd1+
{[%clk 00:04:31]} {[%emt 00:00:24]} 33. Kg2 {[%clk 00:04:29]} {[%emt 00:00:08]}
Qd5+ {[%clk 00:04:27]} {[%emt 00:00:13]} 34. Kg1 {[%clk 00:04:34]} {[%emt
00:00:04]} b4 {[%clk 00:03:41]} {[%emt 00:00:58]} 35. Rxd8+ {[%clk 00:04:36]}
{[%emt 00:00:08]} Qxd8 {[%clk 00:03:50]} 36. Qb6 {[%clk 00:04:32]} {[%emt
00:00:14]} Qd1+ {[%clk 00:03:57]} {[%emt 00:00:02]} 37. Kg2 {[%clk 00:04:40]}
b3 {[%clk 00:03:24]} {[%emt 00:00:44]} 38. a6 {[%clk 00:04:47]} {[%emt
00:00:03]} Qc2+ {[%clk 00:03:33]} {[%emt 00:00:01]} 39. Kh3 {[%clk 00:04:45]}
{[%emt 00:00:12]} b2 {[%clk 00:03:31]} {[%emt 00:00:12]} 40. a7 {[%emt
00:00:25]} b1=Q {[%clk 00:03:35]} {[%emt 00:00:01]} 41. Qxb1 {[%clk 00:04:07]}
{[%emt 00:00:37]} Qxb1 {[%clk 00:03:43]} {[%emt 00:00:02]} 42. a8=Q+ {[%clk
00:04:13]} {[%emt 00:00:05]} Kh7 {[%clk 00:03:53]} 43. Kg2 {[%clk 00:04:06]}
{[%emt 00:00:17]} Qf5 {[%clk 00:03:46]} {[%emt 00:00:17]} 44. Qd8 {[%clk
00:03:35]} {[%emt 00:00:40]} Qd5+ {[%clk 00:02:53]} {[%emt 00:01:03]} 0-1

[Event "Snabb-SM för veteraner, 65+ 2019"]
[Site "Schackcentrum, Vegagatan 20, Gothenburg, Sweden"]
[Date "2019.10.06"]
[Round "9.3"]
[White "Przysuski, Feliks"]
[Black "Fransson, Lennart"]
[Result "1-0"]
[TimeControl "15 minutes + 10 seconds per move from move one"]
[WhiteFideId "1712489"]
[BlackFideId "1706756"]
[WhiteElo "2008"]
[BlackElo "1983"]

1. e4 {[%clk 00:15:13]} {[%emt 00:00:06]} c6 {[%clk 00:15:18]} {[%emt
00:00:03]} 2. d4 {[%clk 00:15:19]} {[%emt 00:00:04]} d5 {[%clk 00:15:26]}
{[%emt 00:00:02]} 3. e5 {[%clk 00:15:28]} {[%emt 00:00:01]} Bf5 {[%clk
00:15:34]} {[%emt 00:00:01]} 4. Nf3 {[%clk 00:15:36]} {[%emt 00:00:01]} e6
{[%clk 00:15:34]} {[%emt 00:00:10]} 5. Be2 {[%clk 00:15:44]} {[%emt 00:00:02]}
h5 {[%clk 00:14:39]} {[%emt 00:01:05]} 6. O-O {[%clk 00:15:51]} {[%emt
00:00:03]} Bg4 {[%clk 00:14:25]} {[%emt 00:00:24]} 7. Nbd2 {[%clk 00:15:55]}
{[%emt 00:00:06]} Nh6 {[%clk 00:14:25]} {[%emt 00:00:09]} 8. h3 {[%clk
00:16:04]} {[%emt 00:00:02]} Bf5 {[%clk 00:14:15]} {[%emt 00:00:20]} 9. Nb3
{[%clk 00:16:09]} {[%emt 00:00:06]} Be7 {[%clk 00:14:15]} {[%emt 00:00:09]} 10.
c4 {[%clk 00:15:45]} {[%emt 00:00:35]} dxc4 {[%clk 00:14:13]} {[%emt 00:00:11]}
11. Bxc4 {[%clk 00:15:53]} {[%emt 00:00:02]} Nd7 {[%clk 00:14:15]} {[%emt
00:00:09]} 12. a4 {[%clk 00:15:42]} {[%emt 00:00:21]} Nb6 {[%clk 00:14:19]}
{[%emt 00:00:05]} 13. Be2 {[%clk 00:15:26]} {[%emt 00:00:25]} Qd5 {[%clk
00:12:44]} {[%emt 00:01:45]} 14. Bf4 {[%clk 00:14:41]} {[%emt 00:00:55]} Be4
{[%clk 00:12:20]} {[%emt 00:00:35]} 15. Nbd2 {[%clk 00:14:38]} {[%emt
00:00:13]} Bxf3 {[%clk 00:11:51]} {[%emt 00:00:39]} 16. Nxf3 {[%clk 00:14:44]}
{[%emt 00:00:04]} Qe4 {[%clk 00:11:28]} {[%emt 00:00:33]} 17. Qd2 {[%clk
00:14:32]} {[%emt 00:00:22]} Rd8 {[%clk 00:10:15]} {[%emt 00:01:23]} 18. Bd3
{[%clk 00:14:35]} {[%emt 00:00:07]} Qd5 {[%clk 00:10:19]} {[%emt 00:00:08]} 19.
a5 {[%clk 00:14:30]} {[%emt 00:00:15]} Na8 {[%clk 00:09:43]} {[%emt 00:00:45]}
20. a6 {[%clk 00:13:04]} {[%emt 00:01:37]} b6 {[%clk 00:09:44]} {[%emt
00:00:09]} 21. Qc2 {[%clk 00:12:59]} {[%emt 00:00:15]} c5 {[%clk 00:08:34]}
{[%emt 00:01:19]} 22. Be4 {[%clk 00:13:04]} {[%emt 00:00:05]} Qd7 {[%clk
00:08:42]} {[%emt 00:00:03]} 23. dxc5 {[%clk 00:12:47]} {[%emt 00:00:26]} bxc5
{[%clk 00:08:20]} {[%emt 00:00:33]} 24. Rfd1 {[%clk 00:12:44]} {[%emt
00:00:13]} Qc7 {[%clk 00:08:12]} {[%emt 00:00:17]} 25. Rxd8+ {[%clk 00:12:49]}
{[%emt 00:00:06]} Qxd8 {[%clk 00:08:21]} {[%emt 00:00:02]} 26. b4 {[%clk
00:12:08]} {[%emt 00:00:51]} O-O {[%clk 00:05:41]} {[%emt 00:02:50]} 27. bxc5
{[%clk 00:12:08]} {[%emt 00:00:10]} Qc8 {[%clk 00:05:23]} {[%emt 00:00:28]} 28.
c6 {[%clk 00:12:04]} {[%emt 00:00:14]} Nc7 {[%clk 00:05:19]} {[%emt 00:00:14]}
29. Qc4 {[%clk 00:12:02]} {[%emt 00:00:12]} Rd8 {[%clk 00:04:32]} {[%emt
00:00:57]} 30. Be3 {[%clk 00:11:34]} {[%emt 00:00:37]} f5 {[%clk 00:04:03]}
{[%emt 00:00:39]} 31. exf6 {[%clk 00:10:23]} {[%emt 00:01:21]} Bxf6 {[%clk
00:04:10]} {[%emt 00:00:04]} 32. Rc1 {[%clk 00:10:07]} {[%emt 00:00:26]} Nf7
{[%clk 00:03:59]} {[%emt 00:00:20]} 33. Bxa7 {[%clk 00:08:17]} {[%emt
00:02:01]} Nd6 {[%clk 00:04:06]} {[%emt 00:00:03]} 34. Qc2 {[%clk 00:08:23]}
{[%emt 00:00:04]} Qxa6 {[%clk 00:03:59]} {[%emt 00:00:17]} 35. Be3 {[%clk
00:08:22]} {[%emt 00:00:11]} Qa3 {[%clk 00:03:07]} {[%emt 00:01:02]} 36. Bg6
{[%clk 00:08:04]} {[%emt 00:00:28]} Nd5 {[%clk 00:02:59]} {[%emt 00:00:19]} 37.
Bc5 {[%clk 00:08:06]} {[%emt 00:00:07]} Qa8 {[%clk 00:02:52]} {[%emt 00:00:18]}
38. Bxd6 {[%emt 00:00:09]} Rxd6 {[%emt 00:00:02]} 39. c7 {[%clk 00:07:59]}
{[%emt 00:00:06]} Qc8 {[%clk 00:02:52]} {[%emt 00:00:09]} 40. Qa4 {[%clk
00:07:33]} {[%emt 00:00:37]} Rd7 {[%clk 00:02:52]} {[%emt 00:00:10]} 41. Qxd7
{[%clk 00:07:39]} {[%emt 00:00:03]} 1-0

[Event "Snabb-SM för veteraner, 65+ 2019"]
[Site "Schackcentrum, Vegagatan 20, Gothenburg, Sweden"]
[Date "2019.10.06"]
[Round "9.4"]
[White "Olsson, Tomas"]
[Black "Wahlstrom, Lennart"]
[Result "1/2-1/2"]
[TimeControl "15 minutes + 10 seconds per move from move one"]
[WhiteFideId "1702696"]
[BlackFideId "1706829"]
[WhiteElo "1973"]
[BlackElo "2109"]

1. e4 {[%clk 00:15:16]} {[%emt 00:00:02]} e5 {[%clk 00:15:18]} {[%emt
00:00:02]} 2. Nf3 {[%clk 00:15:23]} {[%emt 00:00:03]} Nc6 {[%clk 00:15:27]}
{[%emt 00:00:01]} 3. Bc4 {[%clk 00:15:22]} {[%emt 00:00:11]} Nf6 {[%clk
00:15:35]} {[%emt 00:00:02]} 4. d4 {[%clk 00:15:22]} {[%emt 00:00:10]} exd4
{[%clk 00:15:37]} {[%emt 00:00:08]} 5. e5 {[%clk 00:15:28]} {[%emt 00:00:05]}
d5 {[%clk 00:15:41]} {[%emt 00:00:06]} 6. Bb5 {[%clk 00:15:34]} {[%emt
00:00:04]} Ne4 {[%clk 00:15:45]} {[%emt 00:00:05]} 7. Nxd4 {[%clk 00:15:37]}
{[%emt 00:00:08]} Bd7 {[%clk 00:15:52]} {[%emt 00:00:02]} 8. Bxc6 {[%clk
00:15:42]} {[%emt 00:00:05]} bxc6 {[%clk 00:16:00]} {[%emt 00:00:02]} 9. O-O
{[%clk 00:15:43]} {[%emt 00:00:08]} Bc5 {[%clk 00:16:05]} {[%emt 00:00:06]} 10.
Be3 {[%clk 00:15:30]} {[%emt 00:00:23]} O-O {[%clk 00:14:20]} {[%emt 00:01:54]}
11. f3 {[%clk 00:15:31]} {[%emt 00:00:09]} Ng5 {[%clk 00:14:28]} {[%emt
00:00:03]} 12. f4 {[%clk 00:15:33]} {[%emt 00:00:09]} Ne4 {[%clk 00:14:19]}
{[%emt 00:00:18]} 13. Nd2 {[%clk 00:15:29]} {[%emt 00:00:14]} Nxd2 {[%clk
00:14:16]} {[%emt 00:00:14]} 14. Qxd2 {[%clk 00:15:36]} {[%emt 00:00:02]} Bb6
{[%clk 00:14:13]} {[%emt 00:00:12]} 15. Nb3 {[%clk 00:15:29]} {[%emt 00:00:17]}
Bf5 {[%clk 00:11:53]} {[%emt 00:02:30]} 16. Nc5 {[%clk 00:13:09]} {[%emt
00:02:30]} Qe7 {[%clk 00:11:17]} {[%emt 00:00:46]} 17. b4 {[%clk 00:13:04]}
{[%emt 00:00:16]} a5 {[%clk 00:10:49]} {[%emt 00:00:37]} 18. a3 {[%clk
00:12:48]} {[%emt 00:00:26]} axb4 {[%clk 00:10:41]} {[%emt 00:00:18]} 19. axb4
{[%clk 00:12:54]} {[%emt 00:00:04]} f6 {[%clk 00:09:54]} {[%emt 00:00:57]} 20.
Bd4 {[%clk 00:12:01]} {[%emt 00:01:03]} fxe5 {[%clk 00:08:59]} {[%emt
00:01:05]} 21. fxe5 {[%clk 00:12:04]} {[%emt 00:00:06]} Bg6 {[%clk 00:07:23]}
{[%emt 00:01:46]} 22. Rxf8+ {[%clk 00:09:04]} {[%emt 00:03:09]} Rxf8 {[%clk
00:07:31]} {[%emt 00:00:02]} 23. Re1 {[%clk 00:09:02]} {[%emt 00:00:12]} Ra8
{[%clk 00:06:11]} {[%emt 00:01:31]} 24. c3 {[%clk 00:09:00]} {[%emt 00:00:12]}
Bxc5 {[%clk 00:05:01]} {[%emt 00:01:20]} 25. Bxc5 {[%clk 00:09:00]} {[%emt
00:00:10]} Qe6 {[%clk 00:05:10]} {[%emt 00:00:01]} 26. Bd4 {[%clk 00:07:25]}
{[%emt 00:01:45]} Be4 {[%clk 00:04:21]} {[%emt 00:00:59]} 27. Rf1 {[%clk
00:07:05]} {[%emt 00:00:30]} Qg6 {[%clk 00:03:31]} {[%emt 00:01:00]} 28. Bc5
{[%clk 00:04:45]} {[%emt 00:02:29]} h6 {[%clk 00:02:01]} {[%emt 00:01:40]} 29.
Rd1 {[%clk 00:04:14]} {[%emt 00:00:40]} Qf5 {[%clk 00:01:32]} {[%emt 00:00:40]}
30. Bd4 {[%clk 00:04:02]} {[%emt 00:00:23]} Rf8 {[%clk 00:01:36]} {[%emt
00:00:05]} 31. Qe2 {[%clk 00:02:51]} {[%emt 00:01:22]} Qg5 {[%clk 00:00:47]}
{[%emt 00:00:58]} 32. Rf1 {[%clk 00:02:38]} {[%emt 00:00:23]} 1/2-1/2